fUSD/lending_fUSD_20250618
["ID","MTS","AMOUNT","RATE_DAILY","PERIOD"]
[366445179,1750257091634,-951.45,0.00019397,2]
[366445180,1750257091644,-490.0,0.00019397,2]
[366445181,1750257091655,-704.38,0.00019397,2]
[366445182,1750257091665,-718.12,0.00019397,2]
[366445183,1750257091675,-783.15,0.00019397,2]
[366445184,1750257091684,-897.47,0.00019397,2]
[366445185,1750257091693,-655.08,0.00019397,2]
[366445186,1750257091703,-1547.99,0.00019397,2]
[366445187,1750257091713,-801.94,0.00019397,2]
[366445188,1750257091723,-961.74,0.00019397,2]
[366445189,1750257091732,-492.13,0.00019397,2]
[366445190,1750257091742,-490.0,0.00019397,2]
[366445191,1750257091753,-1810.08,0.00019397,2]
[366445192,1750257091763,-609.2,0.00019397,2]
[366445193,1750257091773,-602.08,0.00019397,2]
[366445194,1750257091786,-683.17,0.00019397,2]
[366445195,1750257091877,-750.67,0.00019397,2]
[366445196,1750257091887,-796.54,0.00019397,2]
[366445197,1750257091897,-1113.1,0.00019397,2]
[366445198,1750257091907,-733.94,0.00019397,2]
[366445199,1750257091917,-1298.39,0.00019397,2]
[366445200,1750257091927,-2524.38,0.00019397,2]
[366445201,1750257091936,-843.28,0.00019397,2]
[366445202,1750257091946,-624.51,0.00019397,2]
[366445203,1750257091956,-998.1,0.00019397,2]
[366445204,1750257091966,-741.38,0.00019397,2]
[366445205,1750257091975,-1474.63,0.00019397,2]
[366445206,1750257091985,-490.0,0.00019397,2]
[366445207,1750257091995,-793.14,0.00019397,2]
[366445208,1750257092005,-614.44,0.00019397,2]
[366445209,1750257092015,-646.95,0.00019397,2]
[366445210,1750257092025,-2116.32,0.00019397,2]
[366445211,1750257092037,-600.42,0.00019397,2]
[366445212,1750257092048,-562.77,0.00019397,2]
[366445213,1750257092057,-513.47,0.00019397,2]
[366445214,1750257092068,-1069.11,0.00019397,2]
[366445215,1750257092078,-567.01,0.00019397,2]
[366445216,1750257092087,-1198.12,0.00019397,2]
[366445217,1750257092097,-490.0,0.00019397,2]
[366445218,1750257092107,-632.91,0.00019397,2]
[366445219,1750257092117,-1414.45,0.00019397,2]
[366445220,1750257092127,-1129.76,0.00019397,2]
[366445221,1750257092136,-490.0,0.00019397,2]
[366445222,1750257092146,-1007.10243355,0.000194,2]
[366445223,1750257092155,-460317.1596547,0.000194,2]
[366445224,1750257092203,-287.25957374,0.000194,2]
[366445225,1750257092247,-2145.7623292,0.000194,2]
[366445226,1750257092259,-5007.86443589,0.000194,2]
[366445227,1750257092271,-2124.64431113,0.000194,2]
[366445229,1750257093088,-11800.2101255,0.000194,2]
[366445230,1750257093260,-105339.99999999,0.000194,2]
[366445231,1750257093409,-151.0,0.00016438,2]
[366445232,1750257093420,-1736.38349676,0.000194,2]
[366445233,1750257093435,-505.705,0.000194,2]
[366445234,1750257093447,-2077.3791824,0.000194,2]
[366445235,1750257094213,-256.57632,0.00014227,2]
[366445236,1750257094227,-28.42368,0.00014227,2]
[366445237,1750257094238,-151.0,0.00015166,2]
[366445238,1750257094254,-73.87632,0.00016338,2]
[366445239,1750257094267,-6607.58568,0.00016338,2]
[366445240,1750257094279,-155.0,0.00016399,2]
[366445241,1750257094294,-474.59476752,0.00016999,2]
[366445242,1750257094306,-18143.81955248,0.000194,2]
[366445243,1750257094319,-352.407,0.000194,2]
[366445244,1750257094416,-10525.3114,0.000194,2]
[366445245,1750257094450,-1754.26562708,0.000194,2]
[366445246,1750257096103,-2174.27487736,0.000194,2]
[366445247,1750257096170,-42656.93821677,0.000194,2]
[366445248,1750257096191,-2666.33416178,0.000194,2]
[366445249,1750257157376,171.97,0.00013659,2]
[366445252,1750257248276,4747.072339,7.945e-05,2]
[366445253,1750257419294,-159.42,0.000199,31]
[366445254,1750257419321,-159.42,0.000199,31]
[366445255,1750257419348,-159.42,0.000199,31]
[366445256,1750257419373,-159.42,0.000199,31]
[366445257,1750257419399,-159.42,0.000199,31]
[366445258,1750257419426,-159.42,0.000199,31]
[366445259,1750257419452,-159.42,0.000199,31]
[366445260,1750257419477,-159.42,0.000199,31]
[366445261,1750257419503,-159.42,0.000199,31]
[366445262,1750257419531,-159.42,0.000199,31]
[366445263,1750257419557,-159.42,0.000199,31]
[366445264,1750257419585,-159.42,0.000199,31]
[366445265,1750257419612,-159.42,0.000199,31]
[366445266,1750257419638,-159.42,0.000199,31]
[366445267,1750257419662,-159.42,0.000199,31]
[366445268,1750257419687,-159.42,0.000199,31]
[366445269,1750257419713,-1800.0,0.0002,21]
[366445270,1750257419734,-345649.28,0.0002,14]
[366445271,1750257450772,-2699.23560595,0.00019787,12]
[366445272,1750257450795,-1247.19222692,0.000198,10]
[366445273,1750257450824,-152.19,0.000199,31]
[366445274,1750257450852,-152.19,0.000199,31]
[366445275,1750257450880,-152.19,0.000199,31]
[366445276,1750257450907,-152.19,0.000199,31]
[366445277,1750257450934,-152.19,0.000199,31]
[366445278,1750257450961,-152.19,0.000199,31]
[366445279,1750257450989,-152.19,0.000199,31]
[366445280,1750257451016,-152.19,0.000199,31]
[366445281,1750257451043,-152.19,0.000199,31]
[366445282,1750257451071,-152.19,0.000199,31]
[366445283,1750257451099,-152.19,0.000199,31]
[366445284,1750257451126,-52092.48216713,0.0002,10]
[366445285,1750257484412,-3539.89996194,0.0002,10]
[366445286,1750257484435,-834.10003806,0.0002,14]
[366445287,1750257486929,774.4,0.00024658,120]
[366445288,1750257515735,-3516.61996194,0.0002,14]
[366445289,1750257515758,-0.38003806,0.0002,15]
[366445290,1750257554693,-149.61996194,0.0002,15]
[366445291,1750257554716,-156.23792473,0.0002,30]
[366445292,1750257554744,-474.02447972,0.000209,30]
[366445293,1750257554768,-1800.0,0.00021,22]
[366445294,1750257554797,-1800.0,0.00022,23]
[366445295,1750257554821,-2900.0,0.000225,15]
[366445296,1750257554844,-1000.0,0.00023,14]
[366445297,1750257554866,-1800.0,0.00023,24]
[366445298,1750257554888,-90920.11763361,0.00023,14]
[366445300,1750257580939,-9079.88236639,0.00023,14]
[366445301,1750257580960,-0.11763361,0.00023,15]
[366445303,1750257619620,-15794.85113324,0.00023,15]
[366445304,1750257619643,-0.14886676,0.00023,30]
[366445306,1750257659627,210.04,0.00013699,2]
[366445307,1750257830617,821.69849883,0.00024657,120]
[366445308,1750257876306,-1180.0,0.00023,30]
[366445315,1750257951921,-0.14855129,0.00023,30]
[366445316,1750257951951,-152.19,0.000233,31]
[366445317,1750257951978,-152.19,0.000233,31]
[366445318,1750257952006,-152.19,0.000233,31]
[366445319,1750257952033,-152.19,0.000233,31]
[366445320,1750257952059,-152.19,0.000233,31]
[366445321,1750257952086,-152.19,0.000233,31]
[366445322,1750257952113,-152.19,0.000233,31]
[366445323,1750257952140,-152.19,0.000233,31]
[366445324,1750257952167,-152.19,0.000233,31]
[366445325,1750257952194,-152.19,0.000233,31]
[366445326,1750257952222,-152.19,0.000233,31]
[366445327,1750257952249,-152.19,0.000233,31]
[366445328,1750257952276,-152.19,0.000233,31]
[366445329,1750257952304,-152.19,0.000233,31]
[366445330,1750257952332,-152.19,0.000233,31]
[366445331,1750257952359,-152.19,0.000233,31]
[366445332,1750257952387,-152.19,0.000233,31]
[366445333,1750257952414,-152.19,0.000233,31]
[366445334,1750257952439,-152.19,0.000233,31]
[366445335,1750257952465,-152.19,0.000233,31]
[366445336,1750257952492,-152.19,0.000233,31]
[366445337,1750257952518,-152.19,0.000233,31]
[366445338,1750257952541,-6607.67144871,0.00024,14]
[366445340,1750257993464,-1982.62831095,0.00022,12]
[366445342,1750258029368,-3348.73204768,0.00024,14]
[366445343,1750258029390,-0.26795232,0.00024,25]
[366445346,1750258037324,0.37168905,0.000199,31]
[366445353,1750258085143,-151.85831095,0.000199,31]
[366445354,1750258085171,-152.23,0.000199,31]
[366445355,1750258085200,-152.23,0.000199,31]
[366445356,1750258085228,-152.23,0.000199,31]
[366445357,1750258085256,-152.23,0.000199,31]
[366445358,1750258085286,-152.23,0.000199,31]
[366445359,1750258085319,-152.23,0.000199,31]
[366445360,1750258085347,-152.23,0.000199,31]
[366445361,1750258085375,-152.23,0.000199,31]
[366445362,1750258085402,-152.23,0.000199,31]
[366445363,1750258085794,-152.23,0.000199,31]
[366445364,1750258085824,-125.84168905,0.000199,31]
[366445365,1750258117208,-26.38831095,0.000199,31]
[366445366,1750258117236,-152.23,0.000199,31]
[366445367,1750258117285,-152.23,0.000233,31]
[366445368,1750258117314,-152.23,0.000233,31]
[366445369,1750258117342,-152.23,0.000233,31]
[366445370,1750258117370,-152.23,0.000233,31]
[366445371,1750258117398,-152.23,0.000233,31]
[366445372,1750258117425,-152.23,0.000233,31]
[366445373,1750258117451,-152.23,0.000233,31]
[366445374,1750258117477,-152.23,0.000233,31]
[366445375,1750258117502,-152.23,0.000233,31]
[366445376,1750258117527,-152.23,0.000233,31]
[366445377,1750258117552,-126.08168905,0.000233,31]
[366445378,1750258140180,-26.14831095,0.000233,31]
[366445379,1750258140210,-152.23,0.000233,31]
[366445380,1750258140233,-1621.62168905,0.00024,25]
[366445441,1750258155440,-178.11035863,0.00024,25]
[366445766,1750258166538,244.0,0.00024657,120]
[366445769,1750258179165,244.0,0.00024,25]
[366445770,1750258190928,211.0,0.000211,90]
[366445771,1750258195471,-500.0,0.000241,30]
[366445772,1750258195497,-500.0,0.000241,30]
[366445773,1750258195520,-500.0,0.000241,30]
[366445774,1750258195543,-500.0,0.000241,30]
[366445775,1750258195565,-500.0,0.000241,30]
[366445776,1750258195590,-500.0,0.000241,30]
[366445777,1750258195613,-500.0,0.000241,30]
[366445778,1750258195636,-500.0,0.000241,30]
[366445779,1750258195658,-500.0,0.000241,30]
[366445780,1750258195681,-500.0,0.000241,30]
[366445781,1750258195707,-500.0,0.000241,30]
[366445782,1750258195731,-500.0,0.000241,30]
[366445783,1750258195754,-500.0,0.000241,30]
[366445784,1750258195779,-600.0,0.000241,30]
[366445785,1750258195804,-500.0,0.000241,30]
[366445786,1750258195826,-500.0,0.000241,30]
[366445787,1750258195850,-500.0,0.000241,30]
[366445788,1750258195873,-514.10640613,0.000241,30]
[366445789,1750258195897,-500.0,0.000241,30]
[366445790,1750258195919,-500.0,0.000241,30]
[366445791,1750258195941,-500.0,0.000241,30]
[366445792,1750258195964,-500.0,0.000241,30]
[366445793,1750258195986,-500.0,0.000241,30]
[366445794,1750258196009,-500.0,0.000241,30]
[366445795,1750258196032,-500.0,0.000241,30]
[366445796,1750258196054,-500.0,0.000241,30]
[366445797,1750258196076,-500.0,0.000241,30]
[366445798,1750258196098,-500.0,0.000241,30]
[366445799,1750258196121,-500.0,0.000241,30]
[366445800,1750258196143,-500.0,0.000241,30]
[366445801,1750258196165,-500.0,0.000241,30]
[366445802,1750258196187,-500.0,0.000241,30]
[366445803,1750258196211,-500.0,0.000241,30]
[366445804,1750258196233,-516.11921823,0.000241,30]
[366445805,1750258196257,-500.0,0.000241,30]
[366445806,1750258196280,-686.47491039,0.000241,30]
[366445807,1750258196303,-500.0,0.000241,30]
[366445808,1750258196326,-500.0,0.000241,30]
[366445809,1750258196348,-500.0,0.000241,30]
[366445810,1750258196371,-500.0,0.000241,30]
[366445811,1750258196394,-500.0,0.000241,30]
[366445812,1750258196417,-503.01889727,0.000241,30]
[366445813,1750258196440,-500.0,0.000241,30]
[366445814,1750258196462,-500.0,0.000241,30]
[366445815,1750258196485,-500.0,0.000241,30]
[366445816,1750258196507,-525.61343233,0.000241,30]
[366445817,1750258196528,-500.0,0.000241,30]
[366445818,1750258196549,-500.0,0.000241,30]
[366445819,1750258196571,-500.0,0.000241,30]
[366445820,1750258196593,-500.0,0.000241,30]
[366445821,1750258196613,-500.0,0.000241,30]
[366445822,1750258196637,-500.0,0.000241,30]
[366445823,1750258196659,-500.0,0.000241,30]
[366445824,1750258196681,-500.0,0.000241,30]
[366445825,1750258196702,-500.0,0.000241,30]
[366445826,1750258196723,-500.0,0.000241,30]
[366445827,1750258196745,-500.0,0.000241,30]
[366445828,1750258196766,-956.51110946,0.000241,30]
[366445829,1750258196790,-500.0,0.000241,30]
[366445830,1750258196814,-500.0,0.000241,30]
[366445831,1750258196836,-500.0,0.000241,30]
[366445832,1750258196857,-500.0,0.000241,30]
[366445833,1750258196880,-500.0,0.000241,30]
[366445834,1750258196902,-521.09944323,0.000241,30]
[366445835,1750258196924,-500.0,0.000241,30]
[366445836,1750258197227,-500.0,0.000241,30]
[366445837,1750258197252,-500.0,0.000241,30]
[366445838,1750258197275,-500.0,0.000241,30]
[366445839,1750258197297,-500.0,0.000241,30]
[366445840,1750258197320,-920.35374944,0.000241,30]
[366445841,1750258197342,-500.0,0.000241,30]
[366445842,1750258197364,-500.0,0.000241,30]
[366445843,1750258197386,-500.0,0.000241,30]
[366445844,1750258197409,-1300.0,0.000241,30]
[366445845,1750258197432,-500.0,0.000241,30]
[366445846,1750258197453,-1300.0,0.000241,30]
[366445847,1750258197475,-506.10215174,0.000241,30]
[366445848,1750258197497,-500.0,0.000241,30]
[366445849,1750258197518,-1300.0,0.000241,30]
[366445850,1750258197539,-2000.0,0.000241,30]
[366445851,1750258197561,-500.0,0.000241,30]
[366445852,1750258197582,-1300.0,0.000241,30]
[366445853,1750258197603,-2000.0,0.000241,30]
[366445854,1750258197624,-950.18727739,0.000241,30]
[366445855,1750258197646,-1300.0,0.000241,30]
[366445856,1750258197667,-2000.0,0.000241,30]
[366445857,1750258197689,-2000.0,0.000241,30]
[366445858,1750258197709,-500.0,0.000241,30]
[366445859,1750258197731,-2000.0,0.000241,30]
[366445860,1750258197753,-1300.0,0.000241,30]
[366445861,1750258197775,-553.87182253,0.000241,30]
[366445862,1750258197799,-2000.0,0.000241,30]
[366445863,1750258197820,-1300.0,0.000241,30]
[366445864,1750258197843,-1300.0,0.000241,30]
[366445865,1750258197867,-2000.0,0.000241,30]
[366445866,1750258197891,-1300.0,0.000241,30]
[366445867,1750258197915,-2000.0,0.000241,30]
[366445868,1750258197938,-1300.0,0.000241,30]
[366445869,1750258197963,-2000.0,0.000241,30]
[366445870,1750258197985,-1300.0,0.000241,30]
[366445871,1750258198008,-2000.0,0.000241,30]
[366445872,1750258198031,-1300.0,0.000241,30]
[366445873,1750258198054,-2000.0,0.000241,30]
[366445874,1750258198076,-2000.0,0.000241,30]
[366445875,1750258198098,-1300.0,0.000241,30]
[366445876,1750258198120,-2000.0,0.000241,30]
[366445877,1750258198143,-1600.0,0.000241,30]
[366445878,1750258198164,-3654.84051117,0.000241,30]
[366445879,1750258198188,-310.00111467,0.00024658,30]
[366445880,1750258198209,-488.3457471,0.00024658,120]
[366445881,1750258198232,-3001.03,0.00024685,30]
[366445882,1750258198257,-254.77340223,0.00025,120]
[366445883,1750258198278,-90.55080669,0.00025,30]
[366445933,1750258232479,-600.0,0.00014212,2]
[366445940,1750258232511,-874.089998,0.00014212,2]
[366445959,1750258232593,-3925.926626,0.00014212,2]
[366445963,1750258232602,-1200.0,0.00014284,2]
[366445966,1750258232612,-300.0,0.00014285,2]
[366445968,1750258232622,-600.0,0.00014285,2]
[366445970,1750258232631,-300.0,0.00014285,2]
[366445972,1750258232641,-945.09412951,0.00014286,2]
[366445974,1750258232650,-174.37,0.00014286,2]
[366445976,1750258232659,-6421.51,0.00014286,2]
[366445978,1750258232668,-200.0,0.00014286,7]
[366445980,1750258232677,-811.48078357,0.000149,2]
[366445982,1750258232687,-250.0,0.00014996,2]
[366445984,1750258232696,-1000.0,0.00015021,2]
[366445986,1750258232706,-511.0,0.00015204,2]
[366445988,1750258232716,-151.0,0.00015211,2]
[366445990,1750258232725,-151.0,0.00015233,2]
[366445991,1750258232735,-200.0,0.00015338,2]
[366445994,1750258232744,-2751.0,0.00015338,2]
[366445995,1750258232754,-3631.19474846,0.00015417,2]
[366445998,1750258232766,-331.14851368,0.00015417,2]
[366446036,1750258237725,-3427.36391384,0.00015417,2]
[366446037,1750258237738,-4127.13,0.00015417,2]
[366446038,1750258237749,-1637.75282402,0.00015417,2]
[366446039,1750258237759,-201.47,0.00015486,2]
[366446040,1750258237768,-294.87,0.00015491,2]
[366446041,1750258237778,-14.13717598,0.00015521,2]
[366446042,1750258237789,-291.85282402,0.00015521,2]
[366446043,1750258237799,-726.87511394,0.00015578,2]
[366446044,1750258237814,-1098.44,0.00015578,2]
[366446089,1750258238564,1166.88964137,0.00024,25]
[366446225,1750258239860,-132.54088606,0.00015578,2]
[366446227,1750258239870,-207.4,0.00015578,2]
[366446229,1750258239881,-2030.296672,0.00015633,2]
[366446231,1750258239891,-300.0,0.00015634,2]
[366446233,1750258239900,-420.0,0.00015646,2]
[366446235,1750258239909,-811.48078341,0.00015659,2]
[366446237,1750258239918,-2105.41764886,0.00015688,2]
[366446239,1750258239928,-1200.0,0.00015712,2]
[366446241,1750258239937,-600.0,0.00015714,4]
[366446243,1750258239947,-2183.31810187,0.00015743,2]
[366446245,1750258239956,-6004.22,0.00015759,2]
[366446247,1750258239966,-2264.10087164,0.00015798,2]
[366446249,1750258239977,-300.0,0.00015801,2]
[366446251,1750258239987,-6383.06,0.00015802,2]
[366446253,1750258239996,-2105.41764885,0.00015853,2]
[366446254,1750258240006,-4267.08,0.0001587,2]
[366446257,1750258240017,-9698.24,0.0001587,2]
[366446259,1750258240027,-1000.0,0.000159,2]
[366446261,1750258240038,-155.16285594,0.000159,2]
[366446263,1750258240047,-151.0,0.0001599,2]
[366446265,1750258240056,-151.0,0.0001599,2]
[366446267,1750258240066,-1000.0,0.0001599,2]
[366446269,1750258240075,-200.34233318,0.0001599,2]
[366446271,1750258240085,-1000.0,0.0001599,2]
[366446273,1750258240094,-1000.0,0.0001599,2]
[366446274,1750258240107,-1000.0,0.0001599,2]
[366446277,1750258240117,-1000.0,0.0001599,2]
[366446278,1750258240127,-234.057945,0.0001599,2]
[366446280,1750258240136,-1000.0,0.0001599,2]
[366446283,1750258240146,-500.0,0.0001599,2]
[366446284,1750258240155,-1000.0,0.0001599,2]
[366446286,1750258240165,-500.0,0.0001599,2]
[366446289,1750258240175,-1000.0,0.0001599,2]
[366446291,1750258240185,-500.0,0.0001599,2]
[366446293,1750258240195,-1000.0,0.0001599,2]
[366446295,1750258240204,-500.0,0.0001599,2]
[366446297,1750258240217,-1000.0,0.0001599,2]
[366446298,1750258240227,-500.0,0.0001599,2]
[366446300,1750258240237,-1000.0,0.0001599,2]
[366446302,1750258240247,-1000.0,0.0001599,2]
[366446304,1750258240257,-500.0,0.0001599,2]
[366446307,1750258240266,-500.0,0.0001599,2]
[366446308,1750258240276,-1000.0,0.0001599,2]
[366446310,1750258240286,-563.94761886,0.0001599,2]
[366446321,1750258240374,-436.05238114,0.0001599,2]
[366446323,1750258240383,-282.79061886,0.0001599,2]
[366446332,1750258240460,-717.20938114,0.0001599,2]
[366446334,1750258240470,-1000.0,0.0001599,2]
[366446336,1750258240480,-1000.0,0.0001599,2]
[366446338,1750258240489,-1000.0,0.0001599,2]
[366446340,1750258240499,-1000.0,0.0001599,2]
[366446342,1750258240508,-1011.43237632,0.0001599,2]
[366446344,1750258240517,-151.0,0.0001599,2]
[366446346,1750258240527,-36788.35824255,0.00016,2]
[366446439,1750258241603,-431.89,0.00016,2]
[366446580,1750258242961,-256.50153878,0.00016,2]
[366446581,1750258242972,-494.98,0.00016,2]
[366446582,1750258242982,-491.0,0.00016,2]
[366446584,1750258242992,-303.69,0.00016085,2]
[366446586,1750258243002,-2907.66,0.000161,2]
[366446588,1750258243011,-2907.66,0.000161,2]
[366446590,1750258243020,-2907.66,0.000161,2]
[366446593,1750258243031,-491.53,0.00016256,2]
[366446594,1750258243040,-506.34,0.00016256,2]
[366446596,1750258243050,-200.0,0.000163,2]
[366446599,1750258243059,-200.0,0.00016311,2]
[366446601,1750258243069,-200.0,0.00016336,2]
[366446603,1750258243079,-3418.89706682,0.00016338,2]
[366446610,1750258243145,-924.84807614,0.00016338,2]
[366446613,1750258243158,-271.39805704,0.00016338,2]
[366446615,1750258243167,-200.0,0.00016351,2]
[366446617,1750258243180,-200.0,0.00016364,2]
[366446619,1750258243190,-200.0,0.00016364,2]
[366446621,1750258243199,-200.0,0.00016383,2]
[366446623,1750258243209,-1752.7295124,0.000164,2]
[366446625,1750258243221,-550.53888,0.000164,2]
[366446628,1750258243233,-604.3916076,0.000164,2]
[366446630,1750258243243,-500.0,0.00016408,2]
[366446632,1750258243253,-811.48078341,0.00016417,2]
[366446634,1750258243264,-1000.0,0.00016502,2]
[366446637,1750258243274,-500.0,0.00016518,2]
[366446639,1750258243284,-503.88695915,0.00016521,2]
[366446640,1750258243294,-500.0,0.00016521,2]
[366446643,1750258243304,-5304.78,0.00016619,2]
[366446644,1750258243313,-187.0,0.00016712,2]
[366446647,1750258243323,-558.0,0.00016739,2]
[366446648,1750258243333,-2003.0,0.00016739,2]
[366446650,1750258243343,-1277.0,0.00016739,2]
[366446653,1750258243353,-928.0,0.00016739,2]
[366446654,1750258243362,-590.0,0.00016739,2]
[366446656,1750258243373,-1674.0,0.00016739,2]
[366446658,1750258243382,-887.452,0.00016739,2]
[366446661,1750258243392,-851.0,0.00016739,2]
[366446663,1750258243403,-503.05,0.00016767,2]
[366446665,1750258243412,-300.45,0.00016767,2]
[366446667,1750258243422,-502.18,0.00016767,2]
[366446669,1750258243432,-150.0,0.00016848,2]
[366446671,1750258243442,-150.0,0.00016848,2]
[366446673,1750258243453,-150.0,0.00016848,2]
[366446675,1750258243463,-150.0,0.00016875,2]
[366446677,1750258243473,-1000.0,0.00016898,2]
[366446679,1750258243483,-406.8442514,0.000169,2]
[366446687,1750258243548,-593.1557486,0.000169,2]
[366446689,1750258243559,-715.35579842,0.000169,2]
[366446814,1750258245820,-284.64420158,0.000169,2]
[366446815,1750258245830,-774.15,0.000169,2]
[366446816,1750258245839,-150.0,0.00016903,2]
[366446817,1750258245850,-150.99,0.00016922,2]
[366446818,1750258245860,-299.99,0.00016922,4]
[366446819,1750258245870,-49.48030332,0.00016922,2]
[366446820,1750258245881,-101.50969668,0.00016922,2]
[366446821,1750258245891,-510.0,0.00016922,2]
[366446822,1750258245901,-357.49177566,0.00016924,2]
[366446823,1750258245910,-255.71163978,0.0001693,2]
[366446824,1750258245920,-215.0738,0.00016947,2]
[366446825,1750258245930,-1000.0,0.00016956,2]
[366446826,1750258245939,-150.0,0.00017,2]
[366446827,1750258245949,-1000.0,0.00017069,2]
[366446828,1750258245959,-587.0,0.00017136,2]
[366446829,1750258245968,-811.48078341,0.00017176,2]
[366446830,1750258245978,-833.92080167,0.00017193,2]
[366446831,1750258245991,-206.0,0.0001733,2]
[366446832,1750258246001,-201.0,0.0001733,2]
[366446833,1750258246011,-236.0,0.0001733,2]
[366446834,1750258246021,-200.0,0.0001733,2]
[366446835,1750258246031,-1000.0,0.00017338,2]
[366446836,1750258246040,-5800.0,0.00017339,2]
[366446837,1750258246050,-5800.0,0.00017348,2]
[366446838,1750258246060,-5800.0,0.00017356,2]
[366446839,1750258246071,-156.587,0.00017359,2]
[366446840,1750258246081,-560.18,0.00017363,2]
[366446841,1750258246091,-5800.0,0.00017365,2]
[366446843,1750258246101,-5800.0,0.00017373,2]
[366446845,1750258246110,-5800.0,0.00017382,2]
[366446847,1750258246120,-5800.0,0.0001739,2]
[366446849,1750258246129,-5800.0,0.00017399,2]
[366446851,1750258246139,-2907.66,0.000174,2]
[366446853,1750258246149,-5800.0,0.00017407,2]
[366446854,1750258246159,-5800.0,0.00017416,2]
[366446856,1750258246169,-5800.0,0.00017424,2]
[366446858,1750258246180,-305.99,0.00017461,2]
[366446859,1750258246189,-200.0,0.00017479,2]
[366446860,1750258246199,-1500.0,0.00017504,2]
[366446861,1750258246209,-180.0,0.00017601,2]
[366446862,1750258246219,-1500.0,0.00017617,2]
[366446863,1750258246229,-501.02,0.00017753,2]
[366446864,1750258246243,-302.24,0.00017753,2]
[366446865,1750258246254,-2000.0,0.000178,2]
[366446866,1750258246265,-811.48078341,0.00017934,2]
[366446867,1750258246275,-560.18,0.0001799,2]
[366446868,1750258246286,-1000.0,0.00018,2]
[366446869,1750258246296,-1000.0,0.00018,2]
[366446870,1750258246306,-1000.0,0.00018,2]
[366446871,1750258246316,-1000.0,0.00018,2]
[366446872,1750258246326,-1000.0,0.00018,2]
[366446873,1750258246336,-1000.0,0.00018,2]
[366446874,1750258246346,-1000.0,0.00018,2]
[366446875,1750258246355,-1000.0,0.00018,2]
[366446876,1750258246365,-1000.0,0.00018,2]
[366446877,1750258246375,-1000.0,0.00018,2]
[366446878,1750258246385,-2000.0,0.00018052,2]
[366446879,1750258246394,-2000.0,0.00018165,2]
[366446880,1750258246404,-223.0315306,0.00018316,2]
[366446881,1750258246414,-2500.0,0.00018599,2]
[366446882,1750258246424,-168.0,0.00018691,2]
[366446883,1750258246434,-811.48078341,0.00018693,2]
[366446884,1750258246443,-206.0,0.00018706,3]
[366446885,1750258246453,-899.12982782,0.00018713,2]
[366446886,1750258246463,-162.380719,0.00018728,2]
[366446887,1750258246472,-823.0,0.00018768,2]
[366446888,1750258246485,-1000.0,0.00018776,2]
[366446889,1750258246495,-173.892,0.00018804,2]